lending/lending_fUSD_20240410
["ID","MTS","AMOUNT","RATE_DAILY","PERIOD"]
[322090069,1712757064760,-500.0,0.00055287,120]
[322090070,1712757064772,-419.4542019,0.00055287,120]
[322090071,1712757064784,-500.0,0.00055287,120]
[322090072,1712757064795,-500.0,0.00055287,120]
[322090073,1712757064806,-500.0,0.00055287,120]
[322090074,1712757064817,-500.0,0.00055287,120]
[322090075,1712757064828,-500.0,0.00055287,120]
[322090076,1712757064838,-500.0,0.00055287,120]
[322090077,1712757064849,-500.0,0.00055287,120]
[322090078,1712757064859,-640.61,0.00055287,120]
[322090079,1712757064870,-3449.29,0.00055287,120]
[322090080,1712757064883,-500.0,0.00055287,120]
[322090081,1712757064894,-500.0,0.00055287,120]
[322090082,1712757064904,-503.38,0.00055287,120]
[322090083,1712757064915,-500.0,0.00055287,120]
[322090084,1712757064925,-1048.49,0.00055287,120]
[322090085,1712757064934,-670.88,0.00055287,120]
[322090086,1712757064945,-710.67,0.00055287,120]
[322090087,1712757064955,-500.0,0.00055287,120]
[322090088,1712757064964,-500.0,0.00055287,120]
[322090089,1712757064974,-500.0,0.00055287,120]
[322090090,1712757064985,-500.0,0.00055287,120]
[322090091,1712757065005,-509.52,0.00055287,120]
[322090092,1712757065015,-500.0,0.00055287,120]
[322090093,1712757065024,-500.0,0.00055287,120]
[322090094,1712757065035,-500.0,0.00055287,120]
[322090095,1712757065045,-1705.6,0.00055287,120]
[322090096,1712757065055,-500.0,0.00055287,120]
[322090097,1712757065065,-718.41,0.00055287,120]
[322090098,1712757065076,-500.0,0.00055287,120]
[322090099,1712757065086,-500.0,0.00055287,120]
[322090100,1712757065097,-500.0,0.00055287,120]
[322090101,1712757065107,-1000.0,0.00055287,120]
[322090102,1712757065117,-500.0,0.00055287,120]
[322090103,1712757065128,-4568.49,0.00055287,120]
[322090104,1712757065137,-500.0,0.00055287,120]
[322090105,1712757065148,-500.0,0.00055287,120]
[322090106,1712757065158,-1357.53,0.00055287,120]
[322090107,1712757065169,-566.8,0.00055287,120]
[322090108,1712757065180,-500.0,0.00055287,120]
[322090109,1712757065190,-188.64,0.00055287,2]
[322090110,1712757065200,-500.0,0.00055287,120]
[322090111,1712757065210,-500.0,0.00055287,120]
[322090112,1712757065220,-500.0,0.00055287,120]
[322090113,1712757065230,-500.0,0.00055287,120]
[322090114,1712757065244,-500.0,0.00055287,120]
[322090115,1712757065254,-574.96,0.00055287,120]
[322090116,1712757065264,-500.0,0.00055287,120]
[322090117,1712757065273,-500.0,0.00055287,120]
[322090118,1712757065284,-500.0,0.00055287,120]
[322090119,1712757065294,-500.0,0.00055287,120]
[322090120,1712757065304,-500.0,0.00055287,120]
[322090121,1712757065314,-500.0,0.00055287,120]
[322090122,1712757065324,-500.0,0.00055287,120]
[322090123,1712757065334,-500.0,0.00055287,120]
[322090124,1712757065343,-500.0,0.00055287,120]
[322090125,1712757065353,-500.0,0.00055287,120]
[322090126,1712757065363,-500.0,0.00055287,120]
[322090127,1712757065373,-4253.82,0.00055287,120]
[322090128,1712757065384,-500.0,0.00055287,120]
[322090129,1712757065394,-1535.71,0.00055287,120]
[322090130,1712757065405,-500.0,0.00055287,120]
[322090131,1712757065415,-500.0,0.00055287,120]
[322090132,1712757065425,-500.0,0.00055287,120]
[322090133,1712757065436,-663.78,0.00055287,120]
[322090134,1712757065446,-500.0,0.00055287,120]
[322090135,1712757065456,-555.16,0.00055287,21]
[322090136,1712757065465,-500.0,0.00055287,120]
[322090137,1712757065475,-500.0,0.00055287,120]
[322090138,1712757065484,-975.91,0.00055287,120]
[322090139,1712757065500,-500.0,0.00055287,120]
[322090140,1712757065510,-500.0,0.00055287,120]
[322090141,1712757065520,-500.0,0.00055287,120]
[322090142,1712757065529,-1859.65,0.00055287,120]
[322090143,1712757065539,-587.11,0.00055287,120]
[322090144,1712757065548,-799.99,0.00055287,120]
[322090145,1712757065558,-752.16,0.00055287,120]
[322090146,1712757065567,-500.0,0.00055287,120]
[322090147,1712757065576,-1250.0,0.00055287,120]
[322090148,1712757065587,-836.75,0.00055287,120]
[322090149,1712757065598,-500.0,0.00055287,120]
[322090150,1712757065608,-500.0,0.00055287,120]
[322090151,1712757065618,-605.43,0.00055287,120]
[322090152,1712757065629,-500.0,0.00055287,120]
[322090153,1712757065639,-1130.05,0.00055287,120]
[322090154,1712757065649,-500.0,0.00055287,120]
[322090155,1712757065660,-500.0,0.00055287,120]
[322090156,1712757065670,-500.0,0.00055287,120]
[322090157,1712757065681,-500.0,0.00055287,120]
[322090158,1712757065691,-500.0,0.00055287,120]
[322090159,1712757065701,-903.63,0.00055287,120]
[322090160,1712757065711,-500.0,0.00055287,120]
[322090161,1712757065722,-500.0,0.00055287,120]
[322090162,1712757065732,-500.0,0.00055287,120]
[322090163,1712757065746,-500.0,0.00055287,120]
[322090164,1712757065757,-631.16,0.00055287,120]
[322090165,1712757065768,-621.38,0.00055287,120]
[322090166,1712757065778,-2417.1,0.00055287,120]
[322090167,1712757065789,-500.0,0.00055287,120]
[322090168,1712757065800,-500.0,0.00055287,120]
[322090169,1712757065810,-1028.81,0.00055287,120]
[322090170,1712757065821,-500.0,0.00055287,120]
[322090171,1712757065832,-1163.25,0.00055287,120]
[322090172,1712757065843,-811.61,0.00055287,120]
[322090173,1712757065854,-500.0,0.00055287,120]
[322090174,1712757065866,-698.73,0.00055287,120]
[322090175,1712757065877,-1531.74,0.00055287,120]
[322090176,1712757065888,-500.0,0.00055287,120]
[322090177,1712757065900,-500.0,0.00055287,120]
[322090178,1712757065914,-2383.85,0.00055287,120]
[322090179,1712757065925,-150.0,0.00055294,14]
[322090180,1712757065936,-150.0,0.00055295,14]
[322090181,1712757065947,-300.0,0.00055295,14]
[322090182,1712757065957,-243.02,0.000553,120]
[322090183,1712757065966,-394.0,0.000553,34]
[322090184,1712757065977,-394.0,0.000553,34]
[322090185,1712757065989,-435.0,0.000553,34]
[322090186,1712757066000,-1000.0,0.000553,7]
[322090187,1712757066011,-150.0,0.00055301,14]
[322090188,1712757066020,-150.0,0.00055302,14]
[322090189,1712757066030,-150.0,0.00055303,14]
[322090190,1712757066040,-200.0,0.0005531,120]
[322090191,1712757066050,-150.0,0.00055311,120]
[322090192,1712757066060,-150.0,0.00055311,120]
[322090193,1712757066070,-150.0,0.00055311,120]
[322090194,1712757066080,-1500.0,0.00055319,14]
[322090195,1712757066091,-1500.0,0.00055323,14]
[322090196,1712757066101,-150.0,0.00055325,14]
[322090197,1712757066112,-150.0,0.00055326,14]
[322090198,1712757066122,-300.0,0.00055328,14]
[322090199,1712757066132,-500.0,0.00055334,120]
[322090200,1712757066143,-156.60066381,0.00055337,14]
[322090201,1712757066153,-7508.58235907,0.00055342,120]
[322090202,1712757066163,-150.0,0.00055354,120]
[322090203,1712757066174,-150.0,0.00055361,14]
[322090204,1712757066185,-500.0,0.00055369,120]
[322090205,1712757066195,-360.70969786,0.00055369,120]
[322090206,1712757066206,-194.75188965,0.00055369,120]
[322090207,1712757066217,-391.45682487,0.00055369,120]
[322090208,1712757066227,-219.12,0.00055369,120]
[322090209,1712757066239,-500.0,0.00055369,120]
[322090210,1712757066249,-500.0,0.00055369,120]
[322090211,1712757066259,-500.0,0.00055369,120]
[322090212,1712757066269,-500.0,0.00055369,120]
[322090213,1712757066280,-500.0,0.00055369,120]
[322090214,1712757066290,-500.0,0.00055369,120]
[322090215,1712757066301,-500.0,0.00055369,120]
[322090216,1712757066311,-500.0,0.00055369,120]
[322090217,1712757066321,-500.0,0.00055369,120]
[322090218,1712757066332,-1475.0,0.00055369,120]
[322090219,1712757066343,-500.0,0.00055369,120]
[322090220,1712757066353,-470.5098745,0.00055369,120]
[322090221,1712757066367,-500.0,0.00055369,120]
[322090222,1712757066379,-500.0,0.00055369,120]
[322090223,1712757066390,-500.0,0.00055369,120]
[322090224,1712757066403,-428.95,0.00055369,120]
[322090225,1712757066415,-500.0,0.00055369,120]
[322090226,1712757066426,-500.0,0.00055369,120]
[322090227,1712757066436,-500.0,0.00055369,120]
[322090228,1712757066447,-500.0,0.00055369,120]
[322090229,1712757066458,-500.0,0.00055369,120]
[322090230,1712757066469,-305.85,0.00055369,120]
[322090231,1712757066479,-500.0,0.00055369,120]
[322090232,1712757066492,-500.0,0.00055369,120]
[322090233,1712757066502,-640.61,0.00055369,120]
[322090234,1712757066513,-3449.29,0.00055369,120]
[322090235,1712757066524,-500.0,0.00055369,120]
[322090236,1712757066535,-500.0,0.00055369,120]
[322090237,1712757066545,-503.38,0.00055369,120]
[322090238,1712757066555,-500.0,0.00055369,120]
[322090239,1712757066566,-670.88,0.00055369,120]
[322090240,1712757066576,-1048.49,0.00055369,120]
[322090241,1712757066586,-710.67,0.00055369,120]
[322090242,1712757066596,-500.0,0.00055369,120]
[322090243,1712757066606,-500.0,0.00055369,120]
[322090244,1712757066616,-500.0,0.00055369,120]
[322090245,1712757066626,-500.0,0.00055369,120]
[322090246,1712757066636,-509.52,0.00055369,120]
[322090247,1712757066647,-500.0,0.00055369,120]
[322090248,1712757066657,-500.0,0.00055369,120]
[322090249,1712757066667,-500.0,0.00055369,120]
[322090250,1712757066677,-1705.6,0.00055369,120]
[322090251,1712757066688,-500.0,0.00055369,120]
[322090252,1712757066698,-718.41,0.00055369,120]
[322090253,1712757066708,-500.0,0.00055369,120]
[322090254,1712757066842,-500.0,0.00055369,120]
[322090255,1712757066853,-500.0,0.00055369,120]
[322090256,1712757066869,-1000.0,0.00055369,120]
[322090257,1712757066880,-500.0,0.00055369,120]
[322090258,1712757066892,-4568.49,0.00055369,120]
[322090259,1712757066910,-500.0,0.00055369,120]
[322090260,1712757066920,-500.0,0.00055369,120]
[322090261,1712757066933,-1357.53,0.00055369,120]
[322090262,1712757066944,-566.8,0.00055369,120]
[322090263,1712757066954,-322.93,0.00055369,120]
[322090264,1712757066971,-500.0,0.00055369,120]
[322090265,1712757066991,-500.0,0.00055369,120]
[322090266,1712757067004,-500.0,0.00055369,120]
[322090267,1712757067015,-500.0,0.00055369,120]
[322090268,1712757067026,-500.0,0.00055369,120]
[322090269,1712757067041,-574.96,0.00055369,120]
[322090270,1712757067053,-500.0,0.00055369,120]
[322090271,1712757067062,-500.0,0.00055369,120]
[322090272,1712757067075,-500.0,0.00055369,120]
[322090273,1712757067086,-500.0,0.00055369,120]
[322090274,1712757067096,-500.0,0.00055369,120]
[322090275,1712757067106,-500.0,0.00055369,120]
[322090276,1712757067116,-500.0,0.00055369,120]
[322090277,1712757067134,-500.0,0.00055369,120]
[322090278,1712757067145,-500.0,0.00055369,120]
[322090279,1712757067156,-197.56984587,0.00055369,120]
[322090280,1712757067166,-500.0,0.00055369,120]
[322090281,1712757067176,-4253.82,0.00055369,120]
[322090282,1712757067186,-500.0,0.00055369,120]
[322090283,1712757067197,-1535.71,0.00055369,120]
[322090284,1712757067207,-500.0,0.00055369,120]
[322090285,1712757067217,-500.0,0.00055369,120]
[322090286,1712757067228,-500.0,0.00055369,120]
[322090287,1712757067241,-663.78,0.00055369,120]
[322090288,1712757067251,-555.16,0.00055369,21]
[322090289,1712757067262,-500.0,0.00055369,120]
[322090290,1712757067277,-500.0,0.00055369,120]
[322090291,1712757067289,-500.0,0.00055369,120]
[322090292,1712757067300,-975.91,0.00055369,120]
[322090293,1712757067311,-500.0,0.00055369,120]
[322090294,1712757067321,-500.0,0.00055369,120]
[322090295,1712757067331,-500.0,0.00055369,120]
[322090296,1712757067341,-1859.65,0.00055369,120]
[322090297,1712757067352,-587.11,0.00055369,120]
[322090298,1712757067362,-799.99,0.00055369,120]
[322090299,1712757067372,-752.16,0.00055369,120]
[322090300,1712757067382,-500.0,0.00055369,120]
[322090301,1712757067392,-1250.0,0.00055369,120]
[322090302,1712757067402,-836.75,0.00055369,120]
[322090303,1712757067413,-500.0,0.00055369,120]
[322090304,1712757067423,-500.0,0.00055369,120]
[322090305,1712757067433,-605.43,0.00055369,120]
[322090306,1712757067443,-500.0,0.00055369,120]
[322090307,1712757067453,-1130.05,0.00055369,120]
[322090308,1712757067463,-500.0,0.00055369,120]
[322090309,1712757067473,-500.0,0.00055369,120]
[322090310,1712757067483,-500.0,0.00055369,120]
[322090311,1712757067498,-500.0,0.00055369,120]
[322090312,1712757067508,-500.0,0.00055369,120]
[322090313,1712757067518,-903.63,0.00055369,120]
[322090314,1712757067529,-500.0,0.00055369,120]
[322090315,1712757067539,-289.98,0.00055369,120]
[322090316,1712757067549,-252.24137007,0.00055369,120]
[322090317,1712757067560,-500.0,0.00055369,120]
[322090318,1712757067570,-631.16,0.00055369,120]
[322090319,1712757067581,-621.38,0.00055369,120]
[322090320,1712757067592,-2417.1,0.00055369,120]
[322090321,1712757067602,-500.0,0.00055369,120]
[322090322,1712757067613,-500.0,0.00055369,120]
[322090323,1712757067623,-1028.81,0.00055369,120]
[322090324,1712757067633,-500.0,0.00055369,120]
[322090325,1712757067643,-1163.25,0.00055369,120]
[322090326,1712757067653,-811.61,0.00055369,120]
[322090327,1712757067662,-500.0,0.00055369,120]
[322090328,1712757067672,-698.73,0.00055369,120]
[322090329,1712757067682,-1531.74,0.00055369,120]
[322090330,1712757067691,-500.0,0.00055369,120]
[322090331,1712757067701,-500.0,0.00055369,120]
[322090332,1712757067711,-2383.85,0.00055369,120]
[322090333,1712757067722,-150.0,0.0005537,14]
[322090334,1712757067732,-300.0,0.0005537,14]
[322090335,1712757067747,-150.0,0.00055377,14]
[322090336,1712757067757,-1500.0,0.00055378,14]
[322090337,1712757067768,-150.0,0.00055379,14]
[322090338,1712757067778,-300.0,0.0005538,14]
[322090339,1712757067788,-1500.0,0.00055385,14]
[322090340,1712757067798,-1500.0,0.00055389,14]
[322090341,1712757067809,-150.0,0.0005539,14]
[322090342,1712757067819,-150.0,0.00055397,120]
[322090343,1712757067829,-150.0,0.00055397,14]
[322090344,1712757067839,-150.0,0.00055397,14]
[322090345,1712757067850,-295.0346,0.000554,2]
[322090346,1712757067860,-295.0346,0.000554,2]
[322090347,1712757067873,-150.0,0.00055401,14]
[322090348,1712757067884,-300.0,0.00055407,14]
[322090349,1712757067895,-150.0,0.00055424,14]
[322090350,1712757067906,-300.0,0.00055426,14]
[322090351,1712757067918,-1000.0,0.00055439,11]
[322090352,1712757067928,-150.0,0.00055439,14]
[322090353,1712757067938,-150.0,0.0005544,120]
[322090354,1712757067948,-150.0,0.0005544,120]
[322090355,1712757067958,-150.0,0.0005544,120]
[322090356,1712757067968,-150.0,0.0005544,120]
[322090357,1712757067978,-500.0,0.00055452,120]
[322090358,1712757067992,-500.0,0.00055452,120]
[322090359,1712757068003,-500.0,0.00055452,120]
[322090360,1712757068014,-500.0,0.00055452,120]
[322090361,1712757068025,-500.0,0.00055452,120]
[322090362,1712757068035,-500.0,0.00055452,120]
[322090363,1712757068044,-234.93,0.00055452,120]
[322090364,1712757068054,-500.0,0.00055452,120]
[322090365,1712757068063,-500.0,0.00055452,120]
[322090366,1712757068073,-500.0,0.00055452,120]
[322090367,1712757068084,-1475.0,0.00055452,120]
[322090368,1712757068094,-500.0,0.00055452,120]
[322090369,1712757068104,-500.0,0.00055452,120]
[322090370,1712757068114,-500.0,0.00055452,120]
[322090371,1712757068125,-500.0,0.00055452,120]
[322090372,1712757068135,-500.0,0.00055452,120]
[322090373,1712757068144,-259.92212249,0.00055452,120]
[322090374,1712757068155,-500.0,0.00055452,120]
[322090375,1712757068165,-500.0,0.00055452,120]
[322090376,1712757068175,-500.0,0.00055452,120]
[322090377,1712757068185,-500.0,0.00055452,120]
[322090378,1712757068195,-500.0,0.00055452,120]
[322090379,1712757068205,-640.61,0.00055452,120]
[322090380,1712757068215,-3449.29,0.00055452,120]
[322090381,1712757068226,-500.0,0.00055452,120]
[322090382,1712757068236,-500.0,0.00055452,120]
[322090383,1712757068250,-503.38,0.00055452,120]
[322090384,1712757068260,-500.0,0.00055452,120]
[322090385,1712757068270,-670.88,0.00055452,120]
[322090386,1712757068280,-1048.49,0.00055452,120]
[322090387,1712757068290,-710.67,0.00055452,120]
[322090388,1712757068300,-613.42,0.00055452,120]
[322090389,1712757068310,-500.0,0.00055452,120]
[322090390,1712757068320,-384.1,0.00055452,120]
[322090391,1712757068331,-500.0,0.00055452,120]
[322090392,1712757068341,-509.52,0.00055452,120]
[322090393,1712757068351,-500.0,0.00055452,120]
[322090394,1712757068360,-500.0,0.00055452,120]
[322090395,1712757068371,-500.0,0.00055452,120]
[322090396,1712757068381,-1705.6,0.00055452,120]
[322090397,1712757068391,-500.0,0.00055452,120]
[322090398,1712757068401,-718.41,0.00055452,120]
[322090399,1712757068411,-500.0,0.00055452,120]
[322090400,1712757068421,-500.0,0.00055452,120]
[322090401,1712757068431,-500.0,0.00055452,120]
[322090402,1712757068442,-500.0,0.00055452,120]
[322090403,1712757068452,-4568.49,0.00055452,120]
[322090404,1712757068462,-169.15939693,0.00055452,120]
[322090405,1712757068472,-500.0,0.00055452,120]
[322090406,1712757068482,-1357.53,0.00055452,120]
[322090407,1712757068495,-566.8,0.00055452,120]
[322090408,1712757068505,-500.0,0.00055452,120]
[322090409,1712757068515,-401.85,0.00055452,120]
[322090410,1712757068525,-500.0,0.00055452,120]
[322090411,1712757068535,-500.0,0.00055452,120]
[322090412,1712757068545,-500.0,0.00055452,120]
[322090413,1712757068555,-574.96,0.00055452,120]
[322090414,1712757068565,-500.0,0.00055452,120]
[322090415,1712757068575,-500.0,0.00055452,120]
[322090416,1712757068586,-313.17,0.00055452,120]
[322090417,1712757068597,-500.0,0.00055452,120]
[322090418,1712757068607,-500.0,0.00055452,120]
[322090419,1712757068618,-500.0,0.00055452,120]
[322090420,1712757068628,-500.0,0.00055452,120]
[322090421,1712757068642,-500.0,0.00055452,120]
[322090422,1712757068652,-500.0,0.00055452,120]
[322090423,1712757068663,-500.0,0.00055452,120]
[322090424,1712757068673,-4253.82,0.00055452,120]
[322090425,1712757068686,-500.0,0.00055452,120]
[322090426,1712757068695,-1535.71,0.00055452,120]
[322090427,1712757068705,-480.0,0.00055452,120]
[322090428,1712757068722,-500.0,0.00055452,120]
[322090429,1712757068734,-500.0,0.00055452,120]
[322090430,1712757068752,-663.78,0.00055452,120]
[322090431,1712757068763,-555.16,0.00055452,21]
[322090432,1712757068774,-500.0,0.00055452,120]
[322090433,1712757068785,-500.0,0.00055452,120]
[322090434,1712757068800,-500.0,0.00055452,120]
[322090435,1712757068811,-975.91,0.00055452,120]
[322090436,1712757068821,-500.0,0.00055452,120]
[322090437,1712757068845,-500.0,0.00055452,120]
[322090438,1712757068855,-500.0,0.00055452,120]
[322090439,1712757068866,-1859.65,0.00055452,120]
[322090440,1712757068883,-587.11,0.00055452,120]
[322090441,1712757068899,-752.16,0.00055452,120]
[322090442,1712757068918,-500.0,0.00055452,120]
[322090443,1712757068937,-799.99,0.00055452,120]
[322090444,1712757068947,-1250.0,0.00055452,120]
[322090445,1712757068958,-836.75,0.00055452,120]
[322090446,1712757068967,-500.0,0.00055452,120]
[322090447,1712757068977,-500.0,0.00055452,120]
[322090448,1712757068996,-605.43,0.00055452,120]
[322090449,1712757069006,-500.0,0.00055452,120]
[322090450,1712757069016,-1130.05,0.00055452,120]
[322090451,1712757069026,-500.0,0.00055452,120]
[322090452,1712757069036,-500.0,0.00055452,120]
[322090453,1712757069046,-400.28,0.00055452,120]
[322090454,1712757069056,-500.0,0.00055452,120]
[322090455,1712757069066,-500.0,0.00055452,120]
[322090456,1712757069076,-903.63,0.00055452,120]
[322090457,1712757069086,-500.0,0.00055452,120]
[322090458,1712757069097,-500.0,0.00055452,120]
[322090459,1712757069107,-631.16,0.00055452,120]
[322090460,1712757069117,-621.38,0.00055452,120]
[322090461,1712757069127,-2417.1,0.00055452,120]
[322090462,1712757069137,-500.0,0.00055452,120]
[322090463,1712757069147,-500.0,0.00055452,120]
[322090464,1712757069157,-1028.81,0.00055452,120]
[322090465,1712757069167,-500.0,0.00055452,120]
[322090466,1712757069177,-1163.25,0.00055452,120]
[322090467,1712757069187,-811.61,0.00055452,120]
[322090468,1712757069197,-500.0,0.00055452,120]
[322090469,1712757069207,-698.73,0.00055452,120]
[322090470,1712757069216,-1531.74,0.00055452,120]
[322090471,1712757069352,-500.0,0.00055452,120]
[322090472,1712757069364,-500.0,0.00055452,120]
[322090473,1712757069375,-2383.85,0.00055452,120]
[322090474,1712757069385,-506.91700212,0.00055496,2]
[322090475,1712757069396,-5849.2977863,0.00055496,2]
[322090476,1712757069405,-45740.9907141,0.00055496,2]
[322090477,1712757069415,-1546.8941355,0.00055496,2]
[322090478,1712757069426,-151.0,0.00055496,120]
[322090479,1712757069436,-151.0,0.00055496,120]
[322090480,1712757069446,-151.0,0.00055496,120]
[322090481,1712757069456,-151.0,0.00055496,120]
[322090482,1712757069466,-151.0,0.00055496,120]
[322090483,1712757069476,-151.421921,0.00055496,21]
[322090484,1712757069485,-151.0,0.00055496,120]
[322090485,1712757069502,-151.0,0.00055496,120]
[322090486,1712757069512,-151.0,0.00055496,120]
[322090487,1712757069522,-151.0,0.00055496,30]
[322090488,1712757069532,-151.0,0.00055496,120]
[322090489,1712757069542,-151.0,0.00055496,120]
[322090490,1712757069552,-151.0,0.00055496,30]
[322090491,1712757069563,-151.0,0.00055496,120]
[322090492,1712757069573,-158.444861,0.00055496,120]
[322090493,1712757069583,-151.0,0.00055496,120]
[322090494,1712757069594,-206.59266165,0.00055499,120]
[322090495,1712757069611,-6472.89167597,0.00055499,120]
[322090496,1712757069631,-1000.0,0.00055499,120]
[322090497,1712757069645,-200.0,0.00055499,120]
[322090498,1712757069656,-200.0,0.00055499,120]
[322090499,1712757069668,-294801.08406375,0.000555,120]
[322090500,1712757069678,-16759.31385104,0.000555,15]
[322090501,1712757069688,-10400.63316024,0.000555,5]
[322090502,1712757069698,-543.85545361,0.000555,120]
[322090503,1712757069708,-213.07433655,0.000555,7]
[322090504,1712757069719,-4193.71381489,0.000555,4]
[322090505,1712757069729,-1831.89414632,0.000555,15]
[322090506,1712757069741,-3158.55264147,0.000555,120]
[322090507,1712757069763,-1030.0,0.000555,120]
[322090508,1712757069774,-240.0,0.000555,105]
[322090509,1712757069784,-151.0,0.000555,120]
[322090510,1712757069793,-500.0,0.00055534,120]
[322090511,1712757069803,-500.0,0.00055534,120]
[322090512,1712757069814,-364.59,0.00055534,120]
[322090513,1712757069824,-536.57,0.00055534,120]
[322090514,1712757069835,-477.95415335,0.00055534,120]
[322090515,1712757069845,-500.0,0.00055534,120]
[322090516,1712757069855,-500.0,0.00055534,120]
[322090517,1712757069865,-418.95,0.00055534,120]
[322090518,1712757069876,-339.59,0.00055534,120]
[322090519,1712757069889,-1475.0,0.00055534,120]
[322090520,1712757069899,-500.0,0.00055534,120]
[322090521,1712757069910,-500.0,0.00055534,120]
[322090522,1712757069920,-500.0,0.00055534,120]
[322090523,1712757069934,-500.0,0.00055534,120]
[322090524,1712757069952,-500.0,0.00055534,120]
[322090525,1712757069965,-500.0,0.00055534,120]
[322090526,1712757069978,-500.0,0.00055534,120]
[322090527,1712757069991,-500.0,0.00055534,120]
[322090528,1712757070005,-500.0,0.00055534,120]
[322090529,1712757070015,-500.0,0.00055534,120]
[322090530,1712757070026,-640.61,0.00055534,120]
[322090531,1712757070038,-3449.29,0.00055534,120]
[322090532,1712757070048,-500.0,0.00055534,120]
[322090533,1712757070058,-500.0,0.00055534,120]
[322090534,1712757070068,-503.38,0.00055534,120]
[322090535,1712757070077,-500.0,0.00055534,120]
[322090536,1712757070087,-670.88,0.00055534,120]
[322090537,1712757070097,-1048.49,0.00055534,120]
[322090538,1712757070107,-710.67,0.00055534,120]
[322090539,1712757070117,-500.0,0.00055534,120]
[322090540,1712757070127,-500.0,0.00055534,120]
[322090541,1712757070137,-509.52,0.00055534,120]
[322090542,1712757070147,-500.0,0.00055534,120]
[322090543,1712757070157,-500.0,0.00055534,120]
[322090544,1712757070166,-500.0,0.00055534,120]
[322090545,1712757070177,-1705.6,0.00055534,120]
[322090546,1712757070188,-500.0,0.00055534,120]
[322090547,1712757070198,-718.41,0.00055534,120]
[322090548,1712757070207,-500.0,0.00055534,120]
[322090549,1712757070217,-500.0,0.00055534,120]
[322090550,1712757070227,-500.0,0.00055534,120]
[322090551,1712757070238,-500.0,0.00055534,120]
[322090552,1712757070252,-4568.49,0.00055534,120]
[322090553,1712757070262,-500.0,0.00055534,120]
[322090554,1712757070272,-1357.53,0.00055534,120]
[322090555,1712757070283,-566.8,0.00055534,120]
[322090556,1712757070294,-500.0,0.00055534,120]
[322090557,1712757070306,-500.0,0.00055534,120]
[322090558,1712757070316,-558.24,0.00055534,120]
[322090559,1712757070326,-500.0,0.00055534,120]
[322090560,1712757070337,-574.96,0.00055534,120]
[322090561,1712757070347,-500.0,0.00055534,120]
[322090562,1712757070357,-500.0,0.00055534,120]
[322090563,1712757070366,-500.0,0.00055534,120]
[322090564,1712757070376,-500.0,0.00055534,120]
[322090565,1712757070386,-500.0,0.00055534,120]
[322090566,1712757070397,-500.0,0.00055534,120]
[322090567,1712757070407,-500.0,0.00055534,120]
[322090568,1712757070417,-500.0,0.00055534,120]